bitfinex/quotes_BTCUSD_20220115
["timestamp","ask_amount","ask_price","bid_price","bid_amount"]
[1642260520493,0.00010314,43166.0,43159.0,0.54736106]
[1642260520692,1.68300568,43161.0,43159.0,0.54736106]
[1642260521092,1.78300568,43161.0,43159.0,0.54736106]
[1642260521494,0.1,43161.0,43159.0,0.2769179]
[1642260522167,0.00010314,43166.0,43159.0,0.2769179]
[1642260522367,0.00010314,43166.0,43160.0,0.2038465]
[1642260522567,8.595e-05,43165.0,43159.0,0.2769179]
[1642260522968,6.876e-05,43164.0,43159.0,0.2769179]
[1642260523367,0.00051592,43167.0,43161.0,0.33215504]
[1642260523765,1.93981832,43163.0,43161.0,0.33215504]
[1642260523969,0.00010314,43166.0,43161.0,0.33215504]
[1642260524167,0.41405025,43169.0,43161.0,0.33215504]
[1642260524466,0.104238,43175.0,43166.0,0.30078559]
[1642260524666,0.375228,43172.0,43166.0,0.30078559]
[1642260524866,0.37533114,43172.0,43166.0,0.30078559]
[1642260525371,0.37533114,43172.0,43169.0,0.22227442]
[1642260525372,0.00010314,43172.0,43169.0,0.22227442]
[1642260525567,0.375228,43171.0,43169.0,0.22227442]
[1642260525768,0.00010314,43172.0,43169.0,0.33744499]
[1642260526009,6.876e-05,43170.0,43169.0,0.22227442]
[1642260526208,8.595e-05,43171.0,43169.0,0.22227442]
[1642260526512,6.876e-05,43170.0,43169.0,0.22227442]
[1642260527307,6.876e-05,43170.0,43169.0,0.43543925]
[1642260528108,6.876e-05,43170.0,43169.0,1.15327896]
[1642260528306,6.876e-05,43170.0,43169.0,0.80327896]
[1642260529109,0.29456676,43170.0,43169.0,1.70327896]
[1642260529408,0.29456676,43170.0,43169.0,0.59011413]
[1642260529650,0.29456676,43170.0,43169.0,0.83168524]
[1642260530044,0.29456676,43170.0,43169.0,1.98168524]
[1642260530451,0.29456676,43170.0,43169.0,1.93648524]
[1642260531246,0.29456676,43170.0,43169.0,2.52526063]
[1642260532048,0.29456676,43170.0,43169.0,1.93648524]
[1642260532848,0.29456676,43170.0,43169.0,1.69491413]
[1642260533051,0.29456676,43170.0,43169.0,2.28948285]
[1642260534696,0.29456676,43170.0,43169.0,1.69491413]
[1642260535896,0.29456676,43170.0,43169.0,0.54491413]
[1642260536696,0.29456676,43170.0,43168.0,0.04753564]
[1642260536900,0.29456676,43170.0,43167.0,0.59456872]
[1642260537346,2.08130209,43179.0,43169.0,0.21328048]
[1642260537552,0.00374183,43183.0,43178.0,0.1]
[1642260537750,0.00374183,43183.0,43179.0,0.0463]
[1642260537946,0.00374183,43183.0,43182.0,0.00126668]
[1642260538146,0.00374183,43183.0,43182.0,1.44756668]
[1642260538351,0.00374183,43183.0,43182.0,1.97500922]
[1642260538352,0.0039653,43183.0,43182.0,1.97500922]
[1642260538547,0.00022347,43183.0,43182.0,1.97500922]
[1642260538947,0.00022347,43183.0,43182.0,2.35571763]
[1642260540348,0.00022347,43183.0,43182.0,1.97500922]
[1642260542405,0.00022347,43183.0,43182.0,0.57500922]
[1642260542605,0.00022347,43183.0,43182.0,0.29813437]
[1642260543609,0.00022347,43183.0,43182.0,0.25183437]
[1642260543806,0.00022347,43183.0,43182.0,0.00126668]
[1642260544008,0.00022347,43183.0,43176.0,0.59456872]
[1642260544208,0.00022347,43183.0,43175.0,0.00121159]
[1642260544209,0.00022347,43183.0,43175.0,0.59578031]
[1642260544407,0.00093559,43185.0,43175.0,0.59578031]
[1642260544408,0.00020628,43182.0,43175.0,0.59578031]
[1642260544854,0.00112472,43181.0,43179.0,0.25181834]
[1642260545250,0.0001719,43180.0,43179.0,0.25181834]
[1642260545449,0.0001719,43180.0,43179.0,0.20711834]
[1642260545851,0.0001719,43180.0,43179.0,0.96502534]
[1642260546553,0.0001719,43180.0,43179.0,0.96628937]
[1642260546752,0.0001719,43180.0,43179.0,1.91628937]
[1642260548798,0.00084416,43182.0,43180.0,1.55]
[1642260549499,0.29995927,43188.0,43179.0,0.60375166]
[1642260549500,0.29621733,43188.0,43179.0,0.60375166]
[1642260549902,0.00012033,43187.0,43179.0,0.60375166]
[1642260550298,0.00010314,43186.0,43179.0,0.60375166]
[1642260550498,0.00010314,43186.0,43179.0,0.8164564]
[1642260550698,8.595e-05,43185.0,43179.0,0.8164564]
[1642260551098,6.876e-05,43184.0,43179.0,0.8164564]
[1642260551300,6.876e-05,43184.0,43179.0,0.20838237]
[1642260551503,0.24712665,43183.0,43179.0,0.20838237]
[1642260551899,0.24712665,43183.0,43179.0,0.00126403]
[1642260552349,0.26994162,43181.0,43176.0,0.115808]
[1642260552949,0.26994162,43181.0,43176.0,0.4224725]
[1642260553150,0.27087725,43181.0,43176.0,0.3066645]
[1642260553950,0.00093563,43181.0,43176.0,0.3066645]
[1642260554152,6.876e-05,43184.0,43176.0,0.3066645]
[1642260554551,0.00093563,43181.0,43176.0,0.3066645]
[1642260555350,6.876e-05,43184.0,43176.0,0.3066645]
[1642260555551,0.284565,43183.0,43176.0,0.3066645]
[1642260555752,0.00093563,43181.0,43176.0,0.3066645]
[1642260556595,0.284565,43183.0,43176.0,0.3066645]
[1642260556797,0.00093563,43181.0,43176.0,0.3066645]
[1642260557795,0.284565,43183.0,43176.0,0.3066645]
[1642260557995,0.00093563,43181.0,43176.0,0.3066645]
[1642260559096,0.284565,43183.0,43176.0,0.3066645]
[1642260559297,0.00093563,43181.0,43176.0,0.3066645]
[1642260560150,0.284565,43183.0,43176.0,0.3066645]
[1642260560350,0.00093563,43181.0,43176.0,0.3066645]
[1642260561253,0.00093563,43181.0,43176.0,0.4224715]
[1642260561451,6.876e-05,43184.0,43176.0,0.4224715]
[1642260561653,6.876e-05,43184.0,43178.0,0.05790256]
[1642260561654,0.00014503,43181.0,43178.0,0.05790256]
[1642260562055,0.00014503,43181.0,43178.0,0.35582638]
[1642260562653,6.876e-05,43184.0,43178.0,0.35582638]
[1642260562853,6.876e-05,43184.0,43179.0,0.057903]
[1642260565103,6.876e-05,43184.0,43183.0,0.28647222]
[1642260565301,0.00100436,43184.0,43183.0,0.28647222]
[1642260565701,0.00100436,43184.0,43183.0,0.24167222]
[1642260566303,6.876e-05,43184.0,43183.0,0.24167222]
[1642260566603,6.876e-05,43184.0,43183.0,1.64167222]
[1642260567003,6.876e-05,43184.0,43183.0,1.96557712]
[1642260568252,6.876e-05,43184.0,43183.0,1.4]
[1642260569453,6.876e-05,43184.0,43183.0,1.72995009]
[1642260570455,6.876e-05,43184.0,43183.0,1.72994979]
[1642260571797,6.876e-05,43184.0,43183.0,1.73119772]
[1642260572097,6.876e-05,43184.0,43183.0,1.77749772]
[1642260572501,6.876e-05,43184.0,43183.0,2.57749772]
[1642260572897,6.876e-05,43184.0,43183.0,2.63538572]
[1642260574650,6.876e-05,43184.0,43183.0,3.43677572]
[1642260574849,0.0007563,43186.0,43184.0,2.45]
[1642260575056,0.0007563,43186.0,43185.0,2.5449118]
[1642260575450,0.0007563,43186.0,43185.0,2.72435813]
[1642260575850,0.32725847,43196.0,43187.0,0.057889]
[1642260576050,0.00314644,43194.0,43191.0,0.00120391]
[1642260576251,0.00314644,43194.0,43191.0,0.20762504]
[1642260576549,0.00015471,43193.0,43191.0,0.20762504]
[1642260576949,0.00013752,43192.0,43191.0,0.20762504]
[1642260577348,0.00013752,43192.0,43191.0,0.50410387]
[1642260577548,0.00013752,43192.0,43191.0,0.95410387]
[1642260577753,0.00013752,43192.0,43191.0,1.01199087]
[1642260578400,0.00013752,43192.0,43191.0,0.80556974]
[1642260578602,0.00013752,43192.0,43191.0,0.35556974]
[1642260579003,0.00013752,43192.0,43191.0,0.62134404]
[1642260579207,0.00078474,43194.0,43192.0,2.7]
[1642260579402,0.00065359,43200.0,43193.0,2.74750393]
[1642260579702,0.00065359,43200.0,43199.0,0.00120595]
[1642260580102,0.00079111,43200.0,43199.0,0.58071243]
[1642260580406,0.00079111,43200.0,43199.0,0.25843489]
[1642260581802,0.00079111,43200.0,43199.0,0.00120595]
[1642260582001,0.00079111,43200.0,43194.0,0.115759]
[1642260582459,0.00012033,43199.0,43194.0,0.115759]
[1642260582858,0.28446419,43198.0,43194.0,0.115759]
[1642260583259,8.595e-05,43197.0,43193.0,0.2505374]
[1642260583459,8.595e-05,43197.0,43192.0,0.00129656]
[1642260583658,0.27998757,43198.0,43192.0,0.75129656]
[1642260583860,0.27498757,43198.0,43192.0,0.00129656]
[1642260584260,0.38845911,43198.0,43192.0,0.00129656]
[1642260584461,0.38845911,43198.0,43187.0,0.31960551]
[1642260584462,0.00077948,43197.0,43187.0,0.31960551]
[1642260584666,0.00077948,43197.0,43184.0,0.59427054]
[1642260584861,0.00077948,43197.0,43188.0,0.00013752]
[1642260585060,0.00077948,43197.0,43184.0,0.59427054]
[1642260585061,0.00077948,43197.0,43185.0,0.00018909]
[1642260585262,0.34354731,43192.0,43185.0,0.00018909]
[1642260585668,0.30761081,43187.0,43184.0,0.00020628]
[1642260586103,0.40761081,43187.0,43184.0,0.00020628]
[1642260586296,0.40761081,43187.0,43182.0,0.00024066]
[1642260586695,0.40761081,43187.0,43180.0,0.59427054]
[1642260586696,0.40761081,43187.0,43181.0,0.00025785]
[1642260586896,0.40838829,43187.0,43181.0,0.00025785]
[1642260587095,0.40838829,43187.0,43183.0,0.29065129]
[1642260587498,0.40838829,43187.0,43184.0,0.00020628]
[1642260587896,0.40761081,43187.0,43181.0,0.00025785]
[1642260588097,0.40761081,43187.0,43179.0,0.00029223]
[1642260588498,0.33915143,43185.0,43181.0,0.33250657]
[1642260588899,0.33915143,43185.0,43182.0,0.00024066]
[1642260589299,0.4399276,43185.0,43182.0,0.00024066]
[1642260589499,0.4399276,43185.0,43179.0,0.00029223]
[1642260589958,0.4399276,43185.0,43180.0,0.25342644]
[1642260590152,0.43915143,43185.0,43180.0,0.25342644]
[1642260590453,0.43992797,43185.0,43181.0,0.00025785]
[1642260591454,0.43915143,43185.0,43181.0,0.00025785]
[1642260591654,0.43992808,43185.0,43181.0,0.00025785]
[1642260592655,0.43915143,43185.0,43181.0,0.00025785]
[1642260592855,0.10077665,43185.0,43181.0,0.00025785]
[1642260593054,0.00077665,43185.0,43181.0,0.00025785]
[1642260593902,0.61192487,43188.0,43181.0,0.00025785]
[1642260594102,0.00077665,43185.0,43181.0,0.00025785]
[1642260595107,0.43231492,43188.0,43181.0,0.00025785]
[1642260595305,0.00077653,43185.0,43181.0,0.00025785]
[1642260596306,0.77191749,43188.0,43181.0,0.00025785]
[1642260596609,0.00077653,43185.0,43181.0,0.00025785]
[1642260597450,0.77191749,43188.0,43181.0,0.00025785]
[1642260597750,0.00077656,43185.0,43181.0,0.00025785]
[1642260598551,0.77191749,43188.0,43181.0,0.00025785]
[1642260598756,0.00077657,43185.0,43181.0,0.00025785]
[1642260599754,0.77191749,43188.0,43181.0,0.00025785]
[1642260599954,0.00077657,43185.0,43181.0,0.00025785]
[1642260601099,0.77191749,43188.0,43181.0,0.00025785]
[1642260601301,0.00077656,43185.0,43181.0,0.00025785]
[1642260602197,0.77191749,43188.0,43181.0,0.00025785]
[1642260602597,0.00077656,43185.0,43181.0,0.00025785]
[1642260603499,0.77191749,43188.0,43181.0,0.00025785]
[1642260603698,0.00077656,43185.0,43181.0,0.00025785]
[1642260604099,0.66793391,43188.0,43181.0,0.00025785]
[1642260604760,0.66793391,43188.0,43181.0,0.05816185]
[1642260605159,0.66793391,43188.0,43182.0,0.00024066]
[1642260605561,0.76793391,43188.0,43181.0,0.00025785]
[1642260605962,0.00086328,43187.0,43181.0,0.00025785]
[1642260606961,0.76793391,43188.0,43181.0,0.00025785]
[1642260607162,0.00086328,43187.0,43181.0,0.00025785]
[1642260608164,0.76793391,43188.0,43181.0,0.00025785]
[1642260608408,0.00086328,43187.0,43181.0,0.00025785]
[1642260609411,0.02298418,43184.0,43181.0,0.00025785]
[1642260615250,0.21505648,43183.0,43181.0,0.00025785]
[1642260615552,0.00086787,43187.0,43181.0,0.00025785]
[1642260615553,0.0463,43182.0,43181.0,0.00025785]
[1642260615916,0.06928418,43182.0,43180.0,5.436e-05]
[1642260616117,0.78837347,43181.0,43180.0,5.436e-05]
[1642260616318,0.81868326,43181.0,43180.0,5.436e-05]
[1642260616516,0.70362678,43181.0,43180.0,5.436e-05]
[1642260616718,0.70362678,43181.0,43175.0,0.59427054]
[1642260617117,0.70362678,43181.0,43176.0,8.595e-05]
[1642260617718,0.76155778,43181.0,43176.0,8.595e-05]
[1642260618119,0.375228,43180.0,43176.0,8.595e-05]
[1642260618319,0.21527659,43179.0,43172.0,0.00015471]
[1642260618519,0.31385374,43173.0,43172.0,0.00015471]
[1642260618722,0.50971697,43173.0,43172.0,0.00015471]
[1642260619753,2.95072278,43173.0,43171.0,0.0001719]
[1642260619954,0.18746518,43172.0,43171.0,0.0001719]
[1642260620651,0.31385374,43173.0,43169.0,0.00098276]
[1642260620852,0.18786323,43172.0,43170.0,0.00018909]
[1642260621052,0.21084741,43172.0,43168.0,0.50623611]
[1642260621253,0.02298418,43172.0,43168.0,0.50623611]
[1642260621852,0.02298418,43172.0,43170.0,0.30964826]
[1642260622653,0.02298418,43172.0,43165.0,0.68690462]
[1642260623054,0.02298418,43172.0,43166.0,6.876e-05]
[1642260623526,0.02298418,43172.0,43166.0,0.33029581]
[1642260624126,0.02298418,43172.0,43167.0,0.0007695]
[1642260624929,0.02298418,43172.0,43166.0,0.33029581]
[1642260625328,0.02298418,43172.0,43167.0,0.00076949]
[1642260625930,0.02298418,43172.0,43167.0,6.949e-05]
[1642260626128,0.18862342,43173.0,43167.0,6.949e-05]
[1642260626329,0.02298418,43170.0,43166.0,1.01720043]
[1642260627030,0.02298418,43170.0,43166.0,0.33029581]
[1642260627453,0.02298418,43170.0,43166.0,0.31029581]
[1642260627955,0.02298418,43170.0,43166.0,1.05512236]
[1642260629155,0.02298418,43170.0,43167.0,0.19206126]
[1642260629355,0.02298418,43170.0,43169.0,2.39459101]
[1642260629758,0.00093568,43173.0,43172.0,0.00128154]
[1642260629957,0.0009357,43173.0,43172.0,0.33203706]
[1642260630355,0.0009357,43173.0,43172.0,0.44785606]
[1642260631010,0.34394725,43183.0,43172.0,1.29785606]
[1642260631314,0.31497477,43182.0,43177.0,0.32413451]
[1642260631608,0.34394725,43183.0,43177.0,0.32413451]
[1642260631609,0.00025785,43181.0,43177.0,0.32413451]
[1642260632008,0.00024066,43180.0,43177.0,0.32413451]
[1642260632412,0.00022347,43179.0,43177.0,0.32413451]
[1642260632809,0.00020628,43178.0,43177.0,0.62413451]
[1642260633812,0.00020628,43178.0,43177.0,2.66358061]
[1642260634760,0.00020628,43178.0,43177.0,3.11358061]
[1642260634964,0.00093564,43180.0,43178.0,2.7]
[1642260635160,0.00093564,43180.0,43179.0,3.00488198]
[1642260635360,0.00093564,43180.0,43179.0,3.0060972]
[1642260635762,0.13214928,43193.0,43179.0,3.0060972]
[1642260635961,0.13214928,43193.0,43188.0,0.0591146]
[1642260636161,0.4000265,43194.0,43189.0,0.28304174]
[1642260636562,0.00025785,43193.0,43189.0,0.28304174]
[1642260636863,0.00024066,43192.0,43189.0,0.28304174]
[1642260637263,0.00022347,43191.0,43189.0,0.28304174]
[1642260637662,0.00020628,43190.0,43189.0,0.28304174]
[1642260638409,0.00020628,43190.0,43188.0,0.0012206]
[1642260638808,0.00018909,43189.0,43188.0,0.0012206]
[1642260639208,0.00022347,43189.0,43188.0,0.0012206]
[1642260639409,0.00022347,43189.0,43188.0,1.24050294]
[1642260639609,0.00022347,43189.0,43188.0,0.34050294]
[1642260641212,0.00022347,43189.0,43188.0,0.0012206]
[1642260641416,0.00022347,43189.0,43185.0,0.59439671]
[1642260641613,0.00022347,43189.0,43182.0,0.59439671]
[1642260641814,1.88860254,43192.0,43182.0,0.59439671]
[1642260641815,0.0001719,43188.0,43182.0,0.59439671]
[1642260642011,0.00104956,43188.0,43182.0,0.59439671]
[1642260642270,0.00015471,43187.0,43185.0,0.33714593]
[1642260642574,0.00087766,43188.0,43185.0,0.33714593]
[1642260642575,0.00013752,43186.0,43185.0,0.33714593]
[1642260651364,0.00013752,43186.0,43185.0,0.54105536]
[1642260651567,0.00013752,43186.0,43185.0,0.68714593]
[1642260652462,0.00013752,43186.0,43185.0,0.33714593]
[1642260653825,0.1,43194.0,43185.0,0.33714593]
[1642260654022,0.00093556,43188.0,43185.0,0.33714593]
[1642260655021,0.00012033,43193.0,43185.0,0.33714593]
[1642260655222,0.00093556,43189.0,43185.0,0.33714593]
[1642260656223,0.29917021,43192.0,43185.0,0.33714593]
[1642260656424,0.00093555,43189.0,43185.0,0.33714593]
[1642260657459,8.595e-05,43191.0,43185.0,0.33714593]
[1642260657658,0.00093555,43189.0,43185.0,0.33714593]
[1642260658661,6.876e-05,43190.0,43185.0,0.33714593]
[1642260658859,0.00093555,43189.0,43185.0,0.33714593]
[1642260659859,6.876e-05,43190.0,43185.0,0.33714593]
[1642260660059,0.00093555,43189.0,43185.0,0.33714593]
[1642260661121,6.876e-05,43190.0,43185.0,0.33714593]
[1642260661316,0.00093555,43189.0,43185.0,0.33714593]
[1642260662314,6.876e-05,43190.0,43185.0,0.33714593]
[1642260662515,0.00093555,43189.0,43185.0,0.33714593]
[1642260663516,6.876e-05,43190.0,43185.0,0.33714593]
[1642260663721,0.00093555,43189.0,43185.0,0.33714593]
[1642260664763,6.876e-05,43190.0,43185.0,0.33714593]
[1642260664965,0.00093555,43189.0,43185.0,0.33714593]
[1642260666963,6.876e-05,43190.0,43185.0,0.33714593]
[1642260667163,0.00093555,43189.0,43185.0,0.33714593]
[1642260668163,6.876e-05,43190.0,43185.0,0.33714593]
[1642260668410,0.00093555,43189.0,43185.0,0.33714593]
[1642260669412,6.876e-05,43190.0,43185.0,0.33714593]
[1642260669612,0.00093555,43189.0,43185.0,0.33714593]
[1642260670613,6.876e-05,43190.0,43185.0,0.33714593]
[1642260670814,0.00093555,43189.0,43185.0,0.33714593]
[1642260671816,6.876e-05,43190.0,43185.0,0.33714593]
[1642260672015,0.00093555,43189.0,43185.0,0.33714593]
[1642260672665,0.00093555,43189.0,43188.0,0.00128972]
[1642260672865,0.00093555,43189.0,43188.0,3.14107113]
[1642260673064,6.876e-05,43190.0,43189.0,0.00127375]
[1642260673365,6.876e-05,43190.0,43189.0,2.74757375]
[1642260674268,6.876e-05,43190.0,43189.0,3.34197046]
[1642260677317,6.876e-05,43190.0,43189.0,2.74757375]
[1642260679021,8.76e-06,43190.0,43189.0,3.44189715]
[1642260679219,8.76e-06,43190.0,43189.0,3.44737685]
[1642260679522,0.00093553,43192.0,43189.0,3.44737685]
[1642260679765,0.00374154,43198.0,43191.0,2.70126836]
[1642260679959,0.00374154,43198.0,43197.0,0.00124356]
[1642260680159,0.00065359,43200.0,43197.0,0.00124356]
[1642260680358,0.00065359,43200.0,43197.0,0.29729809]
[1642260680557,0.00015471,43199.0,43197.0,0.29729809]
[1642260680960,0.00013752,43198.0,43197.0,0.35516709]
[1642260681259,0.00013752,43198.0,43197.0,2.05516709]
[1642260681461,0.00013752,43198.0,43197.0,2.27017445]
[1642260681860,0.00013752,43198.0,43197.0,2.05516709]
[1642260682262,0.00013752,43198.0,43197.0,1.99729809]
[1642260682460,0.00013752,43198.0,43197.0,1.99359047]
[1642260682862,0.00205258,43206.0,43198.0,2.05]
[1642260683062,0.00205258,43206.0,43201.0,0.05787156]
[1642260683263,8.595e-05,43203.0,43201.0,0.05787156]
[1642260683715,6.876e-05,43202.0,43201.0,0.05787156]
[1642260684112,6.876e-05,43202.0,43201.0,1.81278302]
[1642260684714,6.876e-05,43202.0,43201.0,0.36278302]
[1642260685309,6.876e-05,43202.0,43201.0,0.81278302]
[1642260686209,0.25796817,43207.0,43202.0,1.107873]
[1642260686410,0.25796817,43207.0,43202.0,0.057873]
[1642260686610,6.876e-05,43206.0,43202.0,0.057873]
[1642260686811,0.18830171,43206.0,43197.0,0.00129238]
[1642260687269,0.18830171,43206.0,43198.0,6.876e-05]
[1642260687665,0.00093541,43204.0,43198.0,6.876e-05]
[1642260687866,0.00093541,43204.0,43199.0,0.30634628]
[1642260688666,0.18581712,43206.0,43199.0,0.36422428]
[1642260688869,0.00093541,43204.0,43199.0,0.30634628]
[1642260689871,6.876e-05,43206.0,43199.0,0.30634628]
[1642260690067,0.00093541,43204.0,43201.0,0.27697266]
[1642260691115,6.876e-05,43206.0,43202.0,0.05786906]
[1642260691316,0.0009354,43205.0,43202.0,0.05786906]
[1642260691516,0.0009354,43205.0,43202.0,0.11573806]
[1642260692318,6.876e-05,43206.0,43202.0,0.11573806]
[1642260692519,0.00100415,43206.0,43202.0,0.11573806]
[1642260692717,0.00100415,43206.0,43202.0,0.057869]
[1642260693117,0.00100415,43206.0,43201.0,0.27697266]
[1642260693318,0.00100415,43206.0,43200.0,0.11574]
[1642260693516,6.876e-05,43206.0,43200.0,0.11574]
[1642260693717,0.00100415,43206.0,43200.0,0.11574]
[1642260693916,0.00100415,43206.0,43201.0,0.05787325]
[1642260694663,6.876e-05,43206.0,43201.0,0.05787325]
[1642260694868,0.00100415,43206.0,43201.0,0.05787325]
[1642260695072,0.34034284,43206.0,43200.0,0.11574]
[1642260695466,0.00100415,43206.0,43200.0,0.11574]
[1642260695665,0.00100415,43206.0,43203.0,0.00126091]
[1642260695867,6.876e-05,43206.0,43203.0,0.00126091]
[1642260696467,0.30147232,43204.0,43203.0,0.00126091]
[1642260697670,0.25531293,43206.0,43203.0,0.00126091]
[1642260698069,0.00089778,43206.0,43203.0,0.00126091]
[1642260698269,6.876e-05,43206.0,43203.0,0.05913291]
[1642260702969,6.876e-05,43206.0,43203.0,0.00126091]
[1642260703467,6.876e-05,43206.0,43203.0,0.05913391]
[1642260708116,6.876e-05,43206.0,43203.0,0.11699912]
[1642260708918,6.876e-05,43206.0,43204.0,0.26860366]
[1642260711768,6.876e-05,43206.0,43203.0,0.11699912]
[1642260712669,6.876e-05,43206.0,43203.0,0.38605793]
[1642260714417,6.876e-05,43206.0,43203.0,0.32819272]
[1642260722526,6.876e-05,43206.0,43203.0,0.05913391]
[1642260722728,6.876e-05,43206.0,43200.0,0.11574]
[1642260723625,0.18764003,43211.0,43206.0,0.33878859]
[1642260723626,0.18570879,43211.0,43206.0,0.33878859]
[1642260724026,6.876e-05,43210.0,43206.0,0.33878859]
[1642260724867,0.00084497,43210.0,43206.0,0.33878859]
[1642260725870,6.876e-05,43210.0,43206.0,0.33878859]
[1642260726068,0.00084497,43210.0,43206.0,0.33878859]
[1642260727066,6.876e-05,43210.0,43206.0,0.33878859]
[1642260727268,0.00084497,43210.0,43206.0,0.33878859]
[1642260728271,6.876e-05,43210.0,43206.0,0.33878859]
[1642260728522,0.00084497,43210.0,43206.0,0.33878859]
[1642260729526,6.876e-05,43210.0,43206.0,0.33878859]
[1642260729728,0.00084497,43210.0,43206.0,0.33878859]
[1642260730128,0.00084497,43210.0,43204.0,0.28629008]
[1642260730327,0.00084497,43210.0,43203.0,0.00120515]
[1642260730631,6.876e-05,43210.0,43203.0,0.00120515]
[1642260730833,0.00077622,43209.0,43203.0,0.00120515]
[1642260731029,0.00077622,43209.0,43207.0,0.32606914]
[1642260731930,6.876e-05,43210.0,43207.0,0.32606914]
[1642260732182,0.00087265,43210.0,43207.0,0.32606914]
[1642260733186,6.876e-05,43210.0,43207.0,0.32606914]
[1642260734987,6.876e-05,43210.0,43207.0,0.38393014]
[1642260737127,6.876e-05,43210.0,43207.0,0.32606914]
[1642260743271,0.306656,43215.0,43208.0,0.3]
[1642260743523,0.00084398,43215.0,43207.0,0.32606914]
[1642260743720,6.876e-05,43214.0,43207.0,0.32606914]
[1642260745124,0.25121331,43215.0,43208.0,0.7]
[1642260745125,0.25049184,43215.0,43208.0,0.7]
[1642260745324,0.25049184,43215.0,43209.0,0.057865]
[1642260745523,0.00012251,43215.0,43209.0,0.05795095]
[1642260745724,0.00012251,43215.0,43210.0,6.876e-05]
[1642260746524,0.00105781,43215.0,43210.0,6.876e-05]
[1642260747576,0.00012251,43215.0,43210.0,6.876e-05]
[1642260747770,0.00105781,43215.0,43210.0,6.876e-05]
[1642260749972,0.24402066,43217.0,43210.0,6.876e-05]
[1642260750177,0.09990563,43218.0,43214.0,0.30351839]
[1642260750573,0.09122878,43223.0,43214.0,0.30351839]
[1642260750773,0.001,43222.0,43214.0,0.30351839]
[1642260751025,0.00012034,43221.0,43214.0,0.30351839]
[1642260751424,0.00010315,43220.0,43214.0,0.30351839]
[1642260751628,0.00010315,43220.0,43214.0,0.25881839]
[1642260751829,8.596e-05,43219.0,43214.0,0.25881839]
[1642260752225,6.877e-05,43218.0,43214.0,0.25881839]
[1642260754773,0.00100403,43218.0,43214.0,0.25881839]
[1642260755873,6.877e-05,43218.0,43214.0,0.25881839]
[1642260756073,0.00100403,43218.0,43214.0,0.25881839]
[1642260756572,1.403e-05,43218.0,43217.0,0.0115]
[1642260756973,1.403e-05,43218.0,43217.0,1.1115]
[1642260757174,0.39922549,43222.0,43217.0,1.1115]
[1642260757374,0.375228,43221.0,43217.0,1.1115]
[1642260757576,0.475228,43221.0,43217.0,1.43659272]
[1642260758824,0.1,43221.0,43217.0,1.43659272]
[1642260759022,0.29922549,43222.0,43217.0,1.43659272]
[1642260759723,0.30016072,43222.0,43217.0,1.43659272]
[1642260760123,0.40016072,43222.0,43217.0,1.43659272]
[1642260760723,0.39922549,43222.0,43217.0,1.43659272]
[1642260760924,0.40016072,43222.0,43217.0,1.43659272]
[1642260761726,0.40016072,43222.0,43217.0,1.39169272]
[1642260761927,0.39922549,43222.0,43217.0,1.39169272]
[1642260762181,0.30016072,43222.0,43217.0,1.39169272]
[1642260762377,0.10193523,43222.0,43217.0,1.39169272]
[1642260762580,0.00193523,43222.0,43217.0,1.44954572]
[1642260762778,0.00193523,43222.0,43220.0,0.00125843]
[1642260762977,0.001,43222.0,43221.0,1.1115]
[1642260763377,0.00106876,43222.0,43221.0,1.41311281]
[1642260765580,0.00106876,43222.0,43221.0,0.31311281]
[1642260766025,0.00106876,43222.0,43221.0,1.37971281]
[1642260770675,0.54108896,43228.0,43221.0,1.37971281]
[1642260771076,6.876e-05,43226.0,43221.0,1.37971281]
[1642260771477,0.00013752,43230.0,43222.0,0.20843853]
[1642260771677,0.00013752,43230.0,43228.0,0.5546428]
[1642260771878,0.00012033,43229.0,43228.0,0.5546428]
[1642260772976,0.00012033,43229.0,43228.0,0.28130925]
[1642260776036,0.00012033,43229.0,43228.0,1.34790925]
[1642260776733,0.00012033,43229.0,43228.0,1.31665171]
[1642260783127,0.001,43233.0,43231.0,1.06566481]
[1642260788179,0.001,43233.0,43231.0,1.0669552]
[1642260789831,0.001,43233.0,43232.0,0.20219063]
[1642260790130,0.00106876,43233.0,43232.0,0.20219063]
[1642260790531,0.00035492,43240.0,43234.0,1.06370698]
[1642260790733,0.00035492,43240.0,43239.0,0.32041585]
[1642260792176,0.00035492,43240.0,43235.0,0.26055833]
[1642260792577,0.00010314,43239.0,43235.0,0.26055833]
[1642260792979,8.595e-05,43238.0,43235.0,0.26055833]
[1642260793379,6.876e-05,43237.0,43236.0,0.31523611]
[1642260797427,6.876e-05,43237.0,43236.0,0.51698147]
[1642260798029,6.876e-05,43237.0,43236.0,0.31523611]
[1642260801280,0.001,43242.0,43239.0,1.06235208]
[1642260801681,6.876e-05,43241.0,43239.0,1.06235208]
[1642260809385,0.00193502,43242.0,43241.0,1.06228332]
[1642260809983,0.001,43242.0,43241.0,1.06228332]
[1642260811833,0.6653,43249.0,43241.0,1.06228332]
[1642260812236,6.876e-05,43245.0,43244.0,0.34267545]
[1642260815478,6.876e-05,43245.0,43244.0,1.40495877]
[1642260815678,6.876e-05,43245.0,43244.0,1.65121575]
[1642260818937,6.876e-05,43245.0,43244.0,1.06228332]
[1642260819933,0.00093497,43247.0,43244.0,1.34144881]
[1642260820136,0.1,43250.0,43244.0,1.34144881]
[1642260820535,6.876e-05,43249.0,43244.0,1.34144881]
[1642260820933,8.595e-05,43250.0,43244.0,1.34144881]
[1642260821133,8.595e-05,43250.0,43244.0,1.06228332]
[1642260822385,0.375228,43249.0,43244.0,1.06228332]
[1642260822585,0.475228,43249.0,43244.0,1.06228332]
[1642260823287,0.20148024,43248.0,43244.0,1.06228332]
[1642260826932,0.00093494,43249.0,43244.0,1.06228332]
[1642260827536,0.00093494,43249.0,43245.0,0.33111464]
[1642260827736,0.20189201,43249.0,43245.0,0.33111464]
[1642260827939,0.20095707,43249.0,43245.0,0.33111464]
[1642260828134,0.19021649,43249.0,43245.0,0.33111464]
[1642260828335,0.19322537,43249.0,43245.0,0.33111464]
[1642260829035,0.19229042,43249.0,43245.0,0.33111464]
[1642260829237,0.375228,43248.0,43244.0,1.06228332]
[1642260829675,0.475228,43248.0,43244.0,1.06228332]
[1642260829881,0.590913,43248.0,43247.0,1.06228332]
[1642260830078,0.85904104,43248.0,43247.0,1.06228332]
[1642260830677,0.74335604,43248.0,43247.0,1.06228332]
[1642260830880,0.80119604,43248.0,43247.0,1.06228332]
[1642260832080,0.521528,43248.0,43247.0,1.06228332]
[1642260833837,0.38409497,43248.0,43247.0,1.06228332]
[1642260834039,0.11232618,43248.0,43247.0,1.06228332]
[1642260834239,0.08102089,43250.0,43247.0,1.06351244]
[1642260834433,0.08102089,43250.0,43248.0,0.26281]
[1642260834932,0.08102089,43250.0,43249.0,0.26295978]
[1642260835134,0.001,43254.0,43250.0,0.7]
[1642260835335,0.00093493,43251.0,43250.0,0.7]
[1642260835536,0.00093493,43255.0,43251.0,1.612787]
[1642260835745,0.00093493,43255.0,43251.0,0.262787]
[1642260836035,6.876e-05,43254.0,43249.0,0.26295978]
[1642260836234,6.876e-05,43254.0,43250.0,0.26279]
[1642260836434,6.876e-05,43254.0,43253.0,0.25143143]
[1642260837383,6.876e-05,43254.0,43253.0,0.18734129]
[1642260837585,0.1,43262.0,43254.0,1.262764]